[Event "*** Titled Tuesday Blitz"]
[Site "Chess.com"]
[Date "2021.03.02"]
[Round "2"]
[White "Nuvas"]
[Black "iturrizaga"]
[Result "0-1"]
[WhiteElo "2537"]
[BlackElo "2847"]
[TimeControl "180+1"]
[EndTime "10:18:35 PST"]
[Termination "iturrizaga won by resignation"]

1. d4 {[%clk 0:03:00.9]} 1... Nf6 {[%clk 0:03:00]} 2. c4 {[%clk 0:03:01.4]} 2...
e6 {[%clk 0:03:00.5]} 3. Nc3 {[%clk 0:03:02.1]} 3... Bb4 {[%clk 0:03:00.7]} 4.
Qc2 {[%clk 0:03:02.8]} 4... c5 {[%clk 0:03:00.7]} 5. dxc5 {[%clk 0:03:02.9]}
5... O-O {[%clk 0:03:01.4]} 6. Nf3 {[%clk 0:03:03]} 6... Bxc5 {[%clk 0:03:01.9]}
7. Bg5 {[%clk 0:02:59.1]} 7... Qb6 {[%clk 0:02:57.8]} 8. e3 {[%clk 0:02:55.2]}
8... Nc6 {[%clk 0:02:55.5]} 9. a3 {[%clk 0:02:44.3]} 9... Be7 {[%clk 0:02:54.9]}
10. Be2 {[%clk 0:02:41.5]} 10... a6 {[%clk 0:02:53.4]} 11. O-O {[%clk
0:02:40.7]} 11... h6 {[%clk 0:02:53.9]} 12. Bh4 {[%clk 0:02:40.4]} 12... d6
{[%clk 0:02:52.2]} 13. Rfd1 {[%clk 0:02:37.6]} 13... Qc7 {[%clk 0:02:48.9]} 14.
Rac1 {[%clk 0:02:35.2]} 14... Ne5 {[%clk 0:02:40.9]} 15. Nxe5 {[%clk 0:02:25.2]}
15... dxe5 {[%clk 0:02:41.8]} 16. Ne4 {[%clk 0:02:05.5]} 16... Nxe4 {[%clk
0:02:32.1]} 17. Bxe7 {[%clk 0:02:05.3]} 17... Re8 {[%clk 0:01:58.7]} 18. Bh4
{[%clk 0:01:25.1]} 18... f5 {[%clk 0:01:52]} 19. f3 {[%clk 0:01:20.9]} 19... Ng5
{[%clk 0:01:44.6]} 20. Bg3 {[%clk 0:01:00.9]} 20... Bd7 {[%clk 0:01:41.3]} 21.
Qc3 {[%clk 0:01:00.7]} 21... Nf7 {[%clk 0:01:40.1]} 22. f4 {[%clk 0:00:58.6]}
22... exf4 {[%clk 0:01:35.4]} 23. exf4 {[%clk 0:00:55]} 23... Bc6 {[%clk
0:01:33.8]} 24. Bh5 {[%clk 0:00:37.4]} 24... Red8 {[%clk 0:01:28.5]} 25. Qe3
{[%clk 0:00:33.1]} 25... Be4 {[%clk 0:01:26.2]} 26. c5 {[%clk 0:00:25.1]} 26...
Rxd1+ {[%clk 0:01:03.2]} 27. Rxd1 {[%clk 0:00:26]} 27... Rd8 {[%clk 0:01:02.8]}
28. Rd4 {[%clk 0:00:25]} 28... Kh7 {[%clk 0:00:50.2]} 29. b4 {[%clk 0:00:19.7]}
29... Rd5 {[%clk 0:00:44.8]} 30. Rxd5 {[%clk 0:00:17.4]} 30... exd5 {[%clk
0:00:39.4]} 31. Qd4 {[%clk 0:00:17.7]} 31... Nd8 {[%clk 0:00:35.3]} 32. Qe5
{[%clk 0:00:11.5]} 32... Qxe5 {[%clk 0:00:27.8]} 33. fxe5 {[%clk 0:00:12.4]}
33... g6 {[%clk 0:00:28.6]} 34. Be2 {[%clk 0:00:12.6]} 34... Kg7 {[%clk
0:00:27.1]} 35. a4 {[%clk 0:00:13.1]} 35... Kf7 {[%clk 0:00:27]} 36. b5 {[%clk
0:00:13.6]} 36... axb5 {[%clk 0:00:27.1]} 37. axb5 {[%clk 0:00:14.5]} 37... Ke6
{[%clk 0:00:27]} 38. h4 {[%clk 0:00:14.8]} 38... g5 {[%clk 0:00:20.6]} 39. hxg5
{[%clk 0:00:14.5]} 39... hxg5 {[%clk 0:00:21.5]} 40. Bh2 {[%clk 0:00:11.4]}
40... f4 {[%clk 0:00:21.2]} 41. Bg4+ {[%clk 0:00:08.8]} 41... Kxe5 {[%clk
0:00:21.7]} 42. g3 {[%clk 0:00:09.6]} 42... d4 {[%clk 0:00:18.8]} 43. gxf4+
{[%clk 0:00:10]} 43... gxf4 {[%clk 0:00:19.7]} 44. Kf2 {[%clk 0:00:09.9]} 44...
d3 {[%clk 0:00:20.1]} 45. Bf3 {[%clk 0:00:09.6]} 45... Ne6 {[%clk 0:00:19.1]}
46. c6 {[%clk 0:00:08.9]} 46... bxc6 {[%clk 0:00:19.2]} 47. bxc6 {[%clk
0:00:09.8]} 47... Bxf3 {[%clk 0:00:16.9]} 48. c7 {[%clk 0:00:09.7]} 48... Nxc7
{[%clk 0:00:16.4]} 49. Kxf3 {[%clk 0:00:10.3]} 49... Nd5 {[%clk 0:00:16.8]} 50.
Bg1 {[%clk 0:00:09]} 50... Nc3 {[%clk 0:00:16.7]} 51. Bh2 {[%clk 0:00:02]} 51...
Ne2 {[%clk 0:00:14.2]} 52. Kf2 {[%clk 0:00:02.4]} 52... Ke4 {[%clk 0:00:14]} 53.
Ke1 {[%clk 0:00:03.1]} 53... Ke3 {[%clk 0:00:12.6]} 54. Bxf4+ {[%clk 0:00:03.5]}
54... Nxf4 {[%clk 0:00:12]} 0-1

[Event "*** Titled Tuesday Blitz"]
[Site "Chess.com"]
[Date "2021.03.02"]
[Round "2"]
[White "BigAl"]
[Black "jposthuma"]
[Result "1-0"]
[WhiteElo "2521"]
[BlackElo "2730"]
[TimeControl "180+1"]
[EndTime "10:18:35 PST"]
[Termination "BigAl won by checkmate"]

1. Nf3 {[%clk 0:03:00.9]} 1... Nf6 {[%clk 0:02:59.7]} 2. g3 {[%clk 0:03:01.1]}
2... g6 {[%clk 0:02:59.3]} 3. Bg2 {[%clk 0:03:01.8]} 3... Bg7 {[%clk 0:02:59.9]}
4. O-O {[%clk 0:03:02.5]} 4... O-O {[%clk 0:03:00.5]} 5. d3 {[%clk 0:03:03.3]}
5... d5 {[%clk 0:02:54.2]} 6. Nbd2 {[%clk 0:03:02.8]} 6... c5 {[%clk 0:02:51.7]}
7. e4 {[%clk 0:03:02.8]} 7... Nc6 {[%clk 0:02:51.9]} 8. c3 {[%clk 0:03:03.3]}
8... b6 {[%clk 0:02:41.5]} 9. Re1 {[%clk 0:03:00.3]} 9... e6 {[%clk 0:02:25.7]}
10. e5 {[%clk 0:02:36.1]} 10... Nd7 {[%clk 0:02:25.3]} 11. d4 {[%clk 0:02:36.6]}
11... b5 {[%clk 0:02:22.4]} 12. h4 {[%clk 0:02:33]} 12... Qb6 {[%clk 0:02:13.7]}
13. Nf1 {[%clk 0:02:33.2]} 13... b4 {[%clk 0:02:09.8]} 14. h5 {[%clk 0:02:20.5]}
14... Ba6 {[%clk 0:01:57.4]} 15. hxg6 {[%clk 0:02:20.3]} 15... hxg6 {[%clk
0:01:54.3]} 16. N1h2 {[%clk 0:02:13.7]} 16... bxc3 {[%clk 0:01:43.6]} 17. bxc3
{[%clk 0:02:13.4]} 17... cxd4 {[%clk 0:01:39.4]} 18. cxd4 {[%clk 0:02:13.6]}
18... Qb5 {[%clk 0:01:31.5]} 19. Bf1 {[%clk 0:02:04.3]} 19... Qb7 {[%clk
0:01:19.8]} 20. Bxa6 {[%clk 0:02:02.9]} 20... Qxa6 {[%clk 0:01:19.8]} 21. Ng4
{[%clk 0:02:03.5]} 21... Rfc8 {[%clk 0:01:08.1]} 22. Ng5 {[%clk 0:01:50.2]}
22... Nd8 {[%clk 0:00:57.9]} 23. Qf3 {[%clk 0:01:49.9]} 23... Qc4 {[%clk
0:00:41.1]} 24. Be3 {[%clk 0:01:49.4]} 24... Qd3 {[%clk 0:00:39.5]} 25. Qh1
{[%clk 0:01:38.5]} 25... Kf8 {[%clk 0:00:32.8]} 26. Nh7+ {[%clk 0:01:27.8]}
26... Ke8 {[%clk 0:00:25.1]} 27. Nhf6+ {[%clk 0:01:15.7]} 27... Bxf6 {[%clk
0:00:18.8]} 28. exf6 {[%clk 0:01:00.3]} 28... Nc6 {[%clk 0:00:19.1]} 29. Qh8+
{[%clk 0:00:52.9]} 29... Nf8 {[%clk 0:00:19.4]} 30. Rac1 {[%clk 0:00:47]} 30...
Qf5 {[%clk 0:00:17.8]} 31. Nh6 {[%clk 0:00:43.7]} 31... Qf3 {[%clk 0:00:17.3]}
32. Qg7 {[%clk 0:00:40.8]} 32... Nd8 {[%clk 0:00:09.2]} 33. Ng8 {[%clk
0:00:25.7]} 33... Rab8 {[%clk 0:00:06.6]} 34. Bh6 {[%clk 0:00:24.8]} 34... Nd7
{[%clk 0:00:03.8]} 35. Ne7 {[%clk 0:00:21.7]} 35... Qxf6 {[%clk 0:00:03.1]} 36.
Qxf6 {[%clk 0:00:18.7]} 36... Nxf6 {[%clk 0:00:03.6]} 37. Nxc8 {[%clk 0:00:19]}
37... Ne4 {[%clk 0:00:02]} 38. Nxa7 {[%clk 0:00:15.1]} 38... Ra8 {[%clk
0:00:01.8]} 39. Nc6 {[%clk 0:00:14.4]} 39... Nb7 {[%clk 0:00:01.1]} 40. Nb4
{[%clk 0:00:11.1]} 40... Nbd6 {[%clk 0:00:01.6]} 41. Bf4 {[%clk 0:00:10.2]}
41... Nc4 {[%clk 0:00:01.8]} 42. Rxe4 {[%clk 0:00:09.1]} 42... dxe4 {[%clk
0:00:01.5]} 43. Rxc4 {[%clk 0:00:09.4]} 43... Ra4 {[%clk 0:00:02.2]} 44. Be3
{[%clk 0:00:09.3]} 44... f5 {[%clk 0:00:02.1]} 45. Bd2 {[%clk 0:00:08.6]} 45...
Kf7 {[%clk 0:00:02.5]} 46. Rc6 {[%clk 0:00:08.2]} 46... Kf6 {[%clk 0:00:02.7]}
47. Ra6 {[%clk 0:00:08.1]} 47... Rxa6 {[%clk 0:00:01.9]} 48. Nxa6 {[%clk
0:00:08.4]} 48... g5 {[%clk 0:00:02.1]} 49. Bc3 {[%clk 0:00:08.6]} 49... f4
{[%clk 0:00:02]} 50. Nc5 {[%clk 0:00:08.3]} 50... Kf5 {[%clk 0:00:02.2]} 51. a4
{[%clk 0:00:07.7]} 51... e3 {[%clk 0:00:02.5]} 52. fxe3 {[%clk 0:00:08.1]} 52...
fxe3 {[%clk 0:00:03]} 53. Kf1 {[%clk 0:00:08.2]} 53... Kg4 {[%clk 0:00:03.9]}
54. Be1 {[%clk 0:00:07.1]} 54... Kf3 {[%clk 0:00:04.1]} 55. a5 {[%clk
0:00:07.2]} 55... g4 {[%clk 0:00:05]} 56. a6 {[%clk 0:00:07.2]} 56... e5 {[%clk
0:00:05.9]} 57. a7 {[%clk 0:00:07.5]} 57... exd4 {[%clk 0:00:06.8]} 58. a8=Q#
{[%clk 0:00:07.9]} 1-0

[Event "*** Titled Tuesday Blitz"]
[Site "Chess.com"]
[Date "2021.03.02"]
[Round "2"]
[White "korkmaz16"]
[Black "SamuelGhimpu2003"]
[Result "0-1"]
[WhiteElo "2400"]
[BlackElo "2652"]
[TimeControl "180+1"]
[EndTime "10:18:46 PST"]
[Termination "SamuelGhimpu2003 won by checkmate"]

1. e4 {[%clk 0:03:00.9]} 1... e6 {[%clk 0:03:00]} 2. d4 {[%clk 0:03:00.4]} 2...
d5 {[%clk 0:03:00.9]} 3. Nd2 {[%clk 0:03:00.4]} 3... c5 {[%clk 0:02:59.4]} 4.
Ngf3 {[%clk 0:02:59.7]} 4... cxd4 {[%clk 0:02:59.2]} 5. Nxd4 {[%clk 0:02:59.1]}
5... Nc6 {[%clk 0:02:58.5]} 6. Bb5 {[%clk 0:02:58.3]} 6... Bd7 {[%clk
0:02:57.5]} 7. Nxc6 {[%clk 0:02:57.9]} 7... bxc6 {[%clk 0:02:58.2]} 8. Bd3
{[%clk 0:02:57]} 8... Bd6 {[%clk 0:02:58.1]} 9. Qe2 {[%clk 0:02:52.4]} 9... e5
{[%clk 0:02:53.7]} 10. Nf3 {[%clk 0:02:38.9]} 10... Qe7 {[%clk 0:02:33.8]} 11.
O-O {[%clk 0:02:17]} 11... Nf6 {[%clk 0:02:20.4]} 12. Re1 {[%clk 0:02:03.9]}
12... dxe4 {[%clk 0:01:50.4]} 13. Bxe4 {[%clk 0:02:03.3]} 13... Nxe4 {[%clk
0:01:51.3]} 14. Qxe4 {[%clk 0:02:03.4]} 14... O-O {[%clk 0:01:52.2]} 15. Qc4
{[%clk 0:01:17.3]} 15... Rfe8 {[%clk 0:01:36.1]} 16. b3 {[%clk 0:01:04.7]} 16...
e4 {[%clk 0:01:15.6]} 17. Ng5 {[%clk 0:00:55.8]} 17... Bf5 {[%clk 0:00:45.2]}
18. Nf3 {[%clk 0:00:29.7]} 18... Qc7 {[%clk 0:00:26.7]} 19. Nd4 {[%clk
0:00:27.9]} 19... Bxh2+ {[%clk 0:00:27.2]} 20. Kh1 {[%clk 0:00:28.4]} 20... Bg6
{[%clk 0:00:25.2]} 21. Qxc6 {[%clk 0:00:27]} 21... Qe5 {[%clk 0:00:24.7]} 22.
Nf3 {[%clk 0:00:16.8]} 22... Qxa1 {[%clk 0:00:22.4]} 23. Kxh2 {[%clk 0:00:17.5]}
23... Rec8 {[%clk 0:00:19.5]} 24. Bf4 {[%clk 0:00:05.2]} 24... Qf6 {[%clk
0:00:13.6]} 25. Qxf6 {[%clk 0:00:04.7]} 25... gxf6 {[%clk 0:00:14.5]} 26. Nd4
{[%clk 0:00:05.6]} 26... Rd8 {[%clk 0:00:12.4]} 27. Be3 {[%clk 0:00:05.7]} 27...
Rac8 {[%clk 0:00:12.7]} 28. c4 {[%clk 0:00:05.6]} 28... a5 {[%clk 0:00:11.8]}
29. g3 {[%clk 0:00:04.3]} 29... Kf8 {[%clk 0:00:11.2]} 30. Kg2 {[%clk
0:00:03.3]} 30... Ke7 {[%clk 0:00:10.8]} 31. Rc1 {[%clk 0:00:03.5]} 31... f5
{[%clk 0:00:07.4]} 32. Bg5+ {[%clk 0:00:02]} 32... f6 {[%clk 0:00:07.5]} 33. Be3
{[%clk 0:00:02.9]} 33... Kd6 {[%clk 0:00:07.2]} 34. c5+ {[%clk 0:00:03]} 34...
Ke5 {[%clk 0:00:07.6]} 35. c6 {[%clk 0:00:03.1]} 35... Rxd4 {[%clk 0:00:07.1]}
36. Rc5+ {[%clk 0:00:01.1]} 36... Rd5 {[%clk 0:00:07.2]} 37. Bf4+ {[%clk
0:00:01.8]} 37... Ke6 {[%clk 0:00:07.5]} 38. Rc4 {[%clk 0:00:01.3]} 38... Be8
{[%clk 0:00:07.1]} 39. c7 {[%clk 0:00:02.2]} 39... Bb5 {[%clk 0:00:05.4]} 40.
Rc2 {[%clk 0:00:03.1]} 40... a4 {[%clk 0:00:05.4]} 41. Rc1 {[%clk 0:00:03.3]}
41... axb3 {[%clk 0:00:05.7]} 42. axb3 {[%clk 0:00:04.2]} 42... Rd3 {[%clk
0:00:06.3]} 43. Rh1 {[%clk 0:00:04.2]} 43... Rxb3 {[%clk 0:00:06]} 44. Rxh7
{[%clk 0:00:04.6]} 44... Bc6 {[%clk 0:00:06.3]} 45. Rh6 {[%clk 0:00:04.9]} 45...
e3+ {[%clk 0:00:06.4]} 46. Kf1 {[%clk 0:00:05.5]} 46... Bb5+ {[%clk 0:00:05.6]}
47. Kg2 {[%clk 0:00:03.1]} 47... e2 {[%clk 0:00:06.5]} 48. Bd2 {[%clk
0:00:03.1]} 48... Rd3 {[%clk 0:00:05.9]} 49. Be1 {[%clk 0:00:02.3]} 49... Rd1
{[%clk 0:00:06]} 50. Bc3 {[%clk 0:00:01.5]} 50... Rxc7 {[%clk 0:00:06.5]} 51.
Rxf6+ {[%clk 0:00:01.6]} 51... Ke7 {[%clk 0:00:07]} 52. Bb2 {[%clk 0:00:01.6]}
52... e1=Q {[%clk 0:00:06.8]} 53. Rxf5 {[%clk 0:00:02.5]} 53... Qh1# {[%clk
0:00:06.3]} 0-1

[Event "*** Titled Tuesday Blitz"]
[Site "Chess.com"]
[Date "2021.03.02"]
[Round "2"]
[White "Chernov_Alexander_A"]
[Black "mortngabriel"]
[Result "0-1"]
[WhiteElo "2294"]
[BlackElo "2496"]
[TimeControl "180+1"]
[EndTime "10:18:46 PST"]
[Termination "mortngabriel won on time"]

1. e4 {[%clk 0:02:58]} 1... c5 {[%clk 0:02:58.9]} 2. Nf3 {[%clk 0:02:57.5]} 2...
d6 {[%clk 0:02:56]} 3. c3 {[%clk 0:02:57.5]} 3... Nf6 {[%clk 0:02:56]} 4. Be2
{[%clk 0:02:56.9]} 4... g6 {[%clk 0:02:50.8]} 5. O-O {[%clk 0:02:56.3]} 5... Bg7
{[%clk 0:02:50.9]} 6. Re1 {[%clk 0:02:56.2]} 6... O-O {[%clk 0:02:50.2]} 7. Bf1
{[%clk 0:02:56.2]} 7... Nc6 {[%clk 0:02:47.8]} 8. d4 {[%clk 0:02:51.6]} 8...
cxd4 {[%clk 0:02:43.2]} 9. cxd4 {[%clk 0:02:50.8]} 9... Bg4 {[%clk 0:02:41]} 10.
Nc3 {[%clk 0:02:47.3]} 10... Bxf3 {[%clk 0:02:30]} 11. gxf3 {[%clk 0:02:46.5]}
11... e5 {[%clk 0:02:30.3]} 12. d5 {[%clk 0:02:44.3]} 12... Nd4 {[%clk
0:02:29.6]} 13. f4 {[%clk 0:02:44.2]} 13... Nh5 {[%clk 0:02:25.9]} 14. fxe5
{[%clk 0:02:10.4]} 14... dxe5 {[%clk 0:02:04.1]} 15. Be3 {[%clk 0:02:01.1]}
15... Qh4 {[%clk 0:02:03.3]} 16. Bg2 {[%clk 0:01:54.4]} 16... Nf4 {[%clk
0:02:00.3]} 17. Bxf4 {[%clk 0:01:51.5]} 17... exf4 {[%clk 0:01:44.1]} 18. f3
{[%clk 0:01:50.2]} 18... Be5 {[%clk 0:01:33.2]} 19. Qd2 {[%clk 0:01:44.2]} 19...
Rac8 {[%clk 0:01:22.9]} 20. Rad1 {[%clk 0:01:40.7]} 20... g5 {[%clk 0:01:19.5]}
21. Qf2 {[%clk 0:01:39.9]} 21... Qxf2+ {[%clk 0:01:14.4]} 22. Kxf2 {[%clk
0:01:39.7]} 22... Kg7 {[%clk 0:01:14.4]} 23. Rd2 {[%clk 0:01:39.1]} 23... b5
{[%clk 0:01:03.6]} 24. Red1 {[%clk 0:01:26.1]} 24... b4 {[%clk 0:01:03.8]} 25.
Ne2 {[%clk 0:01:25.9]} 25... Nc2 {[%clk 0:01:00.9]} 26. Bh3 {[%clk 0:01:09]}
26... Rc7 {[%clk 0:00:59.2]} 27. d6 {[%clk 0:01:08.2]} 27... Rc5 {[%clk
0:00:51.9]} 28. Rd5 {[%clk 0:01:04.3]} 28... Rxd5 {[%clk 0:00:48.7]} 29. Rxd5
{[%clk 0:01:03.6]} 29... Kf6 {[%clk 0:00:48.9]} 30. d7 {[%clk 0:00:59.7]} 30...
Rd8 {[%clk 0:00:47.7]} 31. Nc1 {[%clk 0:00:54.7]} 31... Bxb2 {[%clk 0:00:41.8]}
32. Nd3 {[%clk 0:00:53.7]} 32... Bd4+ {[%clk 0:00:30.9]} 33. Ke2 {[%clk
0:00:51.3]} 33... Bb6 {[%clk 0:00:28.3]} 34. Bf5 {[%clk 0:00:31]} 34... Nd4+
{[%clk 0:00:25.9]} 35. Kf1 {[%clk 0:00:25.1]} 35... Nxf5 {[%clk 0:00:23.1]} 36.
Rxf5+ {[%clk 0:00:24.4]} 36... Ke6 {[%clk 0:00:23.1]} 37. Rxg5 {[%clk
0:00:23.6]} 37... Rxd7 {[%clk 0:00:20.9]} 38. Nxf4+ {[%clk 0:00:22.7]} 38... Kd6
{[%clk 0:00:16.8]} 39. Nd5 {[%clk 0:00:20.6]} 39... Bd4 {[%clk 0:00:09.4]} 40.
Nxb4 {[%clk 0:00:18.3]} 40... Kc7 {[%clk 0:00:07.6]} 41. Rd5 {[%clk 0:00:16.3]}
41... Rxd5 {[%clk 0:00:07.1]} 42. Nxd5+ {[%clk 0:00:14.2]} 42... Kd6 {[%clk
0:00:08]} 43. Ke2 {[%clk 0:00:14]} 43... f5 {[%clk 0:00:08.3]} 44. Kd3 {[%clk
0:00:13.7]} 44... Be5 {[%clk 0:00:08.7]} 45. a4 {[%clk 0:00:13.5]} 45... Bxh2
{[%clk 0:00:07.6]} 46. Ne3 {[%clk 0:00:12.4]} 46... fxe4+ {[%clk 0:00:07.9]} 47.
Kxe4 {[%clk 0:00:11.4]} 47... Ke6 {[%clk 0:00:06.1]} 48. Ng4 {[%clk 0:00:09.8]}
48... Bg1 {[%clk 0:00:04.6]} 49. Nh6 {[%clk 0:00:09.1]} 49... Kf6 {[%clk
0:00:03.8]} 50. Nf5 {[%clk 0:00:05.5]} 50... Kg6 {[%clk 0:00:03.9]} 51. Kf4
{[%clk 0:00:03.8]} 51... h5 {[%clk 0:00:04.8]} 52. Nh4+ {[%clk 0:00:01.9]} 52...
Kf6 {[%clk 0:00:05]} 53. Ng2 {[%clk 0:00:01.5]} 53... Bh2+ {[%clk 0:00:05.3]}
0-1

[Event "*** Titled Tuesday Blitz"]
[Site "Chess.com"]
[Date "2021.03.02"]
[Round "2"]
[White "felipelobo"]
[Black "Taktikmonster"]
[Result "1-0"]
[WhiteElo "2140"]
[BlackElo "2378"]
[TimeControl "180+1"]
[EndTime "10:18:47 PST"]
[Termination "felipelobo won by checkmate"]

1. d4 {[%clk 0:03:00.9]} 1... Nf6 {[%clk 0:02:59.9]} 2. Bf4 {[%clk 0:03:01]}
2... e6 {[%clk 0:02:59.5]} 3. e3 {[%clk 0:02:52.4]} 3... c5 {[%clk 0:02:58.7]}
4. c3 {[%clk 0:02:51.7]} 4... b6 {[%clk 0:02:58.3]} 5. Nf3 {[%clk 0:02:50]} 5...
Bb7 {[%clk 0:02:58.1]} 6. Nbd2 {[%clk 0:02:50]} 6... Nc6 {[%clk 0:02:58.2]} 7.
h3 {[%clk 0:02:49]} 7... cxd4 {[%clk 0:02:56.1]} 8. exd4 {[%clk 0:02:48.6]} 8...
d6 {[%clk 0:02:55.7]} 9. Bd3 {[%clk 0:02:48.6]} 9... Be7 {[%clk 0:02:55.6]} 10.
O-O {[%clk 0:02:47.4]} 10... O-O {[%clk 0:02:55.6]} 11. Qe2 {[%clk 0:02:44]}
11... Re8 {[%clk 0:02:50.4]} 12. Rae1 {[%clk 0:02:41.5]} 12... Bf8 {[%clk
0:02:49.7]} 13. Bg5 {[%clk 0:02:37.1]} 13... h6 {[%clk 0:02:49]} 14. Bh4 {[%clk
0:02:36.6]} 14... e5 {[%clk 0:02:17.2]} 15. dxe5 {[%clk 0:02:32.4]} 15... Nxe5
{[%clk 0:02:00.6]} 16. Nxe5 {[%clk 0:02:21.2]} 16... dxe5 {[%clk 0:02:01.5]} 17.
Ne4 {[%clk 0:02:18.3]} 17... Be7 {[%clk 0:01:53.8]} 18. Bxf6 {[%clk 0:02:05.2]}
18... Bxf6 {[%clk 0:01:54.7]} 19. Rd1 {[%clk 0:02:04.5]} 19... Qe7 {[%clk
0:01:50.2]} 20. Bb5 {[%clk 0:01:59.4]} 20... Red8 {[%clk 0:01:48.8]} 21. Rfe1
{[%clk 0:01:48.9]} 21... a6 {[%clk 0:01:15.7]} 22. Rxd8+ {[%clk 0:01:34.6]}
22... Qxd8 {[%clk 0:01:16.6]} 23. Rd1 {[%clk 0:01:25.6]} 23... Qe7 {[%clk
0:01:06.1]} 24. Rd7 {[%clk 0:01:21.8]} 24... axb5 {[%clk 0:00:46.4]} 25. Rxe7
{[%clk 0:01:21]} 25... Bxe7 {[%clk 0:00:47.3]} 26. Qxb5 {[%clk 0:01:02.7]} 26...
Bxe4 {[%clk 0:00:30.8]} 27. Qxe5 {[%clk 0:01:00.9]} 27... Bc5 {[%clk 0:00:29.4]}
28. Qxe4 {[%clk 0:00:56.4]} 28... Rxa2 {[%clk 0:00:29.4]} 29. Qe2 {[%clk
0:00:31.8]} 29... g6 {[%clk 0:00:29.3]} 30. g4 {[%clk 0:00:29.3]} 30... Kg7
{[%clk 0:00:10.9]} 31. Kg2 {[%clk 0:00:28.5]} 31... Kg8 {[%clk 0:00:07.9]} 32.
Qe8+ {[%clk 0:00:26.4]} 32... Kg7 {[%clk 0:00:08.1]} 33. Qe5+ {[%clk 0:00:26.9]}
33... Kg8 {[%clk 0:00:08]} 34. Qe2 {[%clk 0:00:24.2]} 34... Kg7 {[%clk 0:00:08]}
35. h4 {[%clk 0:00:24.7]} 35... Kg8 {[%clk 0:00:07.6]} 36. h5 {[%clk 0:00:24.4]}
36... gxh5 {[%clk 0:00:04.4]} 37. gxh5 {[%clk 0:00:25.3]} 37... Kg7 {[%clk
0:00:04.8]} 38. Qc2 {[%clk 0:00:24.6]} 38... Kg8 {[%clk 0:00:03.2]} 39. Qb3
{[%clk 0:00:23.5]} 39... Ra1 {[%clk 0:00:03.2]} 40. Qc2 {[%clk 0:00:21.9]} 40...
Ra2 {[%clk 0:00:03.5]} 41. Qd2 {[%clk 0:00:21.1]} 41... Kg7 {[%clk 0:00:03.4]}
42. Qe2 {[%clk 0:00:18.6]} 42... Kg8 {[%clk 0:00:02.3]} 43. Kh3 {[%clk
0:00:17.9]} 43... Kg7 {[%clk 0:00:02.4]} 44. Qe5+ {[%clk 0:00:17.4]} 44... Kg8
{[%clk 0:00:02.6]} 45. Kg3 {[%clk 0:00:15.1]} 45... Kf8 {[%clk 0:00:01.9]} 46.
Qh8+ {[%clk 0:00:14.6]} 46... Ke7 {[%clk 0:00:02.1]} 47. Qxh6 {[%clk 0:00:15]}
47... Rxb2 {[%clk 0:00:02.6]} 48. Qg5+ {[%clk 0:00:14.2]} 48... f6 {[%clk
0:00:01.2]} 49. Qg7+ {[%clk 0:00:12.3]} 49... Ke6 {[%clk 0:00:01.6]} 50. Qg8+
{[%clk 0:00:12.2]} 50... Kf5 {[%clk 0:00:01.6]} 51. Qc8+ {[%clk 0:00:11.9]}
51... Kg5 {[%clk 0:00:01.4]} 52. Qg4+ {[%clk 0:00:11.3]} 52... Kh6 {[%clk
0:00:01.9]} 53. Qg6# {[%clk 0:00:11.6]} 1-0